{"text_format":"1","workbook":"xlsx","n_sheets":3,"sheets":["EntryData","SubmitData","List"],"not_rendered":{"charts":0,"images":0,"macros":1,"external_links":0,"defined_names":0,"comments":0,"pivot_tables":0},"unopened":[],"bounds":{"document_bytes":16777216,"sheet_cells":100000,"rows_first":2000,"rows_last":500,"rows_between":2000,"halvings":0,"cell_chars":16384,"cell_head_chars":4096},"cells_cut":0,"cells_raw":0,"read":"whole","date_system":"1900"}

{"sheet":"EntryData","index":0,"n_rows":22,"n_cols":13,"rows_kept":22,"cut":false,"hidden":false,"merged":[[9,0,12,0],[13,0,17,0],[4,0,8,0]]}
[null,"แบบสำรวจข้อมูลเพื่อวิเคราะห์ต้นทุนการขนส่งรายจังหวัด","สำนักงานขนส่งจังหวัด*",null,"ผู้รายงาน*",null,"วันที่*"]
[null,"ผู้ประกอบการที่ให้ข้อมูล","บริษัท/หจก.*",null,"ชื่อผู้ติดต่อ*",null,"โทร/มือถือ*"]
[]
[null,"รายการข้อมูลนำเข้า",null,"รถชนิดที่ 1","รถชนิดที่ 2","รถชนิดที่ 3","รถชนิดที่ 4","รถชนิดที่ 5","รถชนิดที่ 6","รถชนิดที่ 7","รถชนิดที่ 8","รถชนิดที่ 9","รถชนิดที่ 10"]
["การประกอบการขนส่ง","ยี่ห้อรถ","กรอกยี่ห้อรถเพื่อส่งข้อมูล"]
[null,"ชนิดรถ",null,"รถหัวลากกึ่งพ่วง","รถหัวลากกึ่งพ่วง","รถหัวลากกึ่งพ่วง","รถหัวลากกึ่งพ่วง","รถหัวลากกึ่งพ่วง","รถหัวลากกึ่งพ่วง","รถหัวลากกึ่งพ่วง","รถหัวลากกึ่งพ่วง","รถหัวลากกึ่งพ่วง","รถหัวลากกึ่งพ่วง"]
[null,"เชื้อเพลิงที่ใช้สำหรับรถประเภทนั้นๆ (กรุณาเลือก)",null,"น้ำมันดีเซล","น้ำมันดีเซล","น้ำมันดีเซล","น้ำมันดีเซล","น้ำมันดีเซล","น้ำมันดีเซล","น้ำมันดีเซล","น้ำมันดีเซล","น้ำมันดีเซล","น้ำมันดีเซล"]
[null,"น้ำหนักบรรทุก (รวมรถบรรทุก+สินค้า)","ตัน"]
[null,"จำนวนรถบรรทุกที่มี (ตามประเภทรถ)","คัน"]
["การบริหารหมู่รถ (Fleet)","อายุการใช้งานของรถ (ประมาณ)","ปี"]
[null,"อัตราการใช้เชื้อเพลิงเฉลี่ย กรณีบรรทุกสินค้า","กม./ลิตร, กม./กก."]
[null,"อัตราการใช้เชื้อเพลิงเฉลี่ย กรณีรถเปล่า","กม./ลิตร, กม./กก."]
[null,"ระยะทางการใช้งานรถ เฉลี่ยต่อคัน ต่อปี","กม./ปี"]
["ค่าใช้จ่ายเกี่ยวกับรถบรรทุก","ค่าประกันตัวรถ เฉลี่ยต่อคัน","บาท/ปี"]
[null,"ค่าประกันสินค้า เฉลี่ยต่อคัน","บาท/ปี"]
[null,"ค่าผ่านทางพิเศษ เฉลี่ยต่อคัน","บาท/ปี"]
[null,"ค่าใช้จ่ายไม่มีใบเสร็จ เฉลี่ยต่อคัน","บาท/ปี"]
[null,"ค่าใช้จ่ายอื่นๆ เฉลี่ยต่อคัน","บาท/ปี"]
[null,"ประเภทสินค้าที่บรรทุก"]
[]
[null,"หมายเหตุ การเริ่มต้นใช้งาน ต้องทำการเปิดแมโครก่อน โดยกดที่ตัวเลือก->เปิดการใช้งานนี้"]
[null,"หมายเหตุ2 เมื่อกรอกข้อมูลเสร็จเรียบร้อยแล้ว โปรดกดปุ่มส่งข้อมูลและรอการดำเนินงานสักครู่"]

{"sheet":"SubmitData","index":1,"n_rows":13,"n_cols":18,"rows_kept":13,"cut":false,"hidden":false,"merged":[]}
["&FD=","Header","สำนักงานขนส่งจังหวัด","บริษัท/หจก.","ผู้รายงาน","ชื่อผู้ติดต่อ","วันที่","โทร/มือถือ","SubmitDateTime"]
[{"$f":"IF(B2<>\"\",CONCATENATE($A$1,URLEncode(B2),$A$1,URLEncode(C2),$A$1,URLEncode(D2),$A$1,URLEncode(E2),$A$1,URLEncode(F2),$A$1,URLEncode(G2),$A$1,URLEncode(H2),$A$1,URLEncode(I2)),\"\")","v":""},{"$f":"(IF(AND(C2<>\"\",D2<>\"\",E2<>\"\",F2<>\"\",G2<>\"\",H2<>\"\"),CONCATENATE(C2,\"-\",I2),\"\"))","v":""},{"$f":"IF(EntryData!D1=\"\",\"\",EntryData!D1)","v":""},{"$f":"(IF(EntryData!D2=\"\",\"\",EntryData!D2))","v":""},{"$f":"(IF(EntryData!F1=\"\",\"\",EntryData!F1))","v":""},{"$f":"(IF(EntryData!F2=\"\",\"\",EntryData!F2))","v":""},{"$f":"(IF(EntryData!H1=\"\",\"\",EntryData!H1))","v":""},{"$f":"(IF(EntryData!H2=\"\",\"\",EntryData!H2))","v":""},"21-06-2562 14:46:09"]
[null,"Details",null,"ยี่ห้อรถ","ชนิดรถ","เชื้อเพลิงที่ใช้สำหรับรถประเภทนั้นๆ (กรุณาเลือก)","น้ำหนักบรรทุก (รวมรถบรรทุก+สินค้า)","จำนวนรถบรรทุกที่มี (ตามประเภทรถ)","อายุการใช้งานของรถ (ประมาณ)","อัตราการใช้เชื้อเพลิงเฉลี่ย กรณีบรรทุกสินค้า","อัตราการใช้เชื้อเพลิงเฉลี่ย กรณีรถเปล่า","ระยะทางการใช้งานรถ เฉลี่ยต่อคัน ต่อปี","ค่าประกันตัวรถ เฉลี่ยต่อคัน","ค่าประกันสินค้า เฉลี่ยต่อคัน","ค่าผ่านทางพิเศษ เฉลี่ยต่อคัน","ค่าใช้จ่ายไม่มีใบเสร็จ เฉลี่ยต่อคัน","ค่าใช้จ่ายอื่นๆ เฉลี่ยต่อคัน","ประเภทสินค้าที่บรรทุก"]
[{"$f":"IF(B4<>\"\",CONCATENATE($A$1,URLEncode(B4),$A$1,URLEncode(C4),$A$1,URLEncode(D4),$A$1,URLEncode(E4),$A$1,URLEncode(F4),$A$1,URLEncode(G4),$A$1,URLEncode(H4),$A$1,URLEncode(I4),$A$1,URLEncode(J4),$A$1,URLEncode(K4),$A$1,URLEncode(L4),$A$1,URLEncode(M4),$A$1,URLEncode(N4),$A$1,URLEncode(O4),$A$1,URLEncode(P4),$A$1,URLEncode(Q4),$A$1,URLEncode(R4)),\"\")","v":""},{"$f":"IF(D4 = \"\", \"\", $B$2)","v":""},{"$f":"IF(D4 = \"\", \"\", ROW(D4)-3)","v":""},{"$f":"TRANSPOSE(IF(EntryData!D5:M19=\"\",\"\",(EntryData!D5:M19)))","v":""},"รถหัวลากกึ่งพ่วง","น้ำมันดีเซล","","","","","","","","","","","",""]
[{"$f":"IF(B5<>\"\",CONCATENATE($A$1,URLEncode(B5),$A$1,URLEncode(C5),$A$1,URLEncode(D5),$A$1,URLEncode(E5),$A$1,URLEncode(F5),$A$1,URLEncode(G5),$A$1,URLEncode(H5),$A$1,URLEncode(I5),$A$1,URLEncode(J5),$A$1,URLEncode(K5),$A$1,URLEncode(L5),$A$1,URLEncode(M5),$A$1,URLEncode(N5),$A$1,URLEncode(O5),$A$1,URLEncode(P5),$A$1,URLEncode(Q5),$A$1,URLEncode(R5)),\"\")","v":""},{"$f":"IF(D5 = \"\", \"\", $B$2)","v":""},{"$f":"IF(D5 = \"\", \"\", ROW(D5)-3)","v":""},"","รถหัวลากกึ่งพ่วง","น้ำมันดีเซล","","","","","","","","","","","",""]
[{"$f":"IF(B6<>\"\",CONCATENATE($A$1,URLEncode(B6),$A$1,URLEncode(C6),$A$1,URLEncode(D6),$A$1,URLEncode(E6),$A$1,URLEncode(F6),$A$1,URLEncode(G6),$A$1,URLEncode(H6),$A$1,URLEncode(I6),$A$1,URLEncode(J6),$A$1,URLEncode(K6),$A$1,URLEncode(L6),$A$1,URLEncode(M6),$A$1,URLEncode(N6),$A$1,URLEncode(O6),$A$1,URLEncode(P6),$A$1,URLEncode(Q6),$A$1,URLEncode(R6)),\"\")","v":""},"","","","รถหัวลากกึ่งพ่วง","น้ำมันดีเซล","","","","","","","","","","","",""]
[{"$f":"IF(B7<>\"\",CONCATENATE($A$1,URLEncode(B7),$A$1,URLEncode(C7),$A$1,URLEncode(D7),$A$1,URLEncode(E7),$A$1,URLEncode(F7),$A$1,URLEncode(G7),$A$1,URLEncode(H7),$A$1,URLEncode(I7),$A$1,URLEncode(J7),$A$1,URLEncode(K7),$A$1,URLEncode(L7),$A$1,URLEncode(M7),$A$1,URLEncode(N7),$A$1,URLEncode(O7),$A$1,URLEncode(P7),$A$1,URLEncode(Q7),$A$1,URLEncode(R7)),\"\")","v":""},"","","","รถหัวลากกึ่งพ่วง","น้ำมันดีเซล","","","","","","","","","","","",""]
[{"$f":"IF(B8<>\"\",CONCATENATE($A$1,URLEncode(B8),$A$1,URLEncode(C8),$A$1,URLEncode(D8),$A$1,URLEncode(E8),$A$1,URLEncode(F8),$A$1,URLEncode(G8),$A$1,URLEncode(H8),$A$1,URLEncode(I8),$A$1,URLEncode(J8),$A$1,URLEncode(K8),$A$1,URLEncode(L8),$A$1,URLEncode(M8),$A$1,URLEncode(N8),$A$1,URLEncode(O8),$A$1,URLEncode(P8),$A$1,URLEncode(Q8),$A$1,URLEncode(R8)),\"\")","v":""},"","","","รถหัวลากกึ่งพ่วง","น้ำมันดีเซล","","","","","","","","","","","",""]
[{"$f":"IF(B9<>\"\",CONCATENATE($A$1,URLEncode(B9),$A$1,URLEncode(C9),$A$1,URLEncode(D9),$A$1,URLEncode(E9),$A$1,URLEncode(F9),$A$1,URLEncode(G9),$A$1,URLEncode(H9),$A$1,URLEncode(I9),$A$1,URLEncode(J9),$A$1,URLEncode(K9),$A$1,URLEncode(L9),$A$1,URLEncode(M9),$A$1,URLEncode(N9),$A$1,URLEncode(O9),$A$1,URLEncode(P9),$A$1,URLEncode(Q9),$A$1,URLEncode(R9)),\"\")","v":""},"","","","รถหัวลากกึ่งพ่วง","น้ำมันดีเซล","","","","","","","","","","","",""]
[{"$f":"IF(B10<>\"\",CONCATENATE($A$1,URLEncode(B10),$A$1,URLEncode(C10),$A$1,URLEncode(D10),$A$1,URLEncode(E10),$A$1,URLEncode(F10),$A$1,URLEncode(G10),$A$1,URLEncode(H10),$A$1,URLEncode(I10),$A$1,URLEncode(J10),$A$1,URLEncode(K10),$A$1,URLEncode(L10),$A$1,URLEncode(M10),$A$1,URLEncode(N10),$A$1,URLEncode(O10),$A$1,URLEncode(P10),$A$1,URLEncode(Q10),$A$1,URLEncode(R10)),\"\")","v":""},"","","","รถหัวลากกึ่งพ่วง","น้ำมันดีเซล","","","","","","","","","","","",""]
[{"$f":"IF(B11<>\"\",CONCATENATE($A$1,URLEncode(B11),$A$1,URLEncode(C11),$A$1,URLEncode(D11),$A$1,URLEncode(E11),$A$1,URLEncode(F11),$A$1,URLEncode(G11),$A$1,URLEncode(H11),$A$1,URLEncode(I11),$A$1,URLEncode(J11),$A$1,URLEncode(K11),$A$1,URLEncode(L11),$A$1,URLEncode(M11),$A$1,URLEncode(N11),$A$1,URLEncode(O11),$A$1,URLEncode(P11),$A$1,URLEncode(Q11),$A$1,URLEncode(R11)),\"\")","v":""},"","","","รถหัวลากกึ่งพ่วง","น้ำมันดีเซล","","","","","","","","","","","",""]
[{"$f":"IF(B12<>\"\",CONCATENATE($A$1,URLEncode(B12),$A$1,URLEncode(C12),$A$1,URLEncode(D12),$A$1,URLEncode(E12),$A$1,URLEncode(F12),$A$1,URLEncode(G12),$A$1,URLEncode(H12),$A$1,URLEncode(I12),$A$1,URLEncode(J12),$A$1,URLEncode(K12),$A$1,URLEncode(L12),$A$1,URLEncode(M12),$A$1,URLEncode(N12),$A$1,URLEncode(O12),$A$1,URLEncode(P12),$A$1,URLEncode(Q12),$A$1,URLEncode(R12)),\"\")","v":""},"","","","รถหัวลากกึ่งพ่วง","น้ำมันดีเซล","","","","","","","","","","","",""]
[{"$f":"IF(B13<>\"\",CONCATENATE($A$1,URLEncode(B13),$A$1,URLEncode(C13),$A$1,URLEncode(D13),$A$1,URLEncode(E13),$A$1,URLEncode(F13),$A$1,URLEncode(G13),$A$1,URLEncode(H13),$A$1,URLEncode(I13),$A$1,URLEncode(J13),$A$1,URLEncode(K13),$A$1,URLEncode(L13),$A$1,URLEncode(M13),$A$1,URLEncode(N13),$A$1,URLEncode(O13),$A$1,URLEncode(P13),$A$1,URLEncode(Q13),$A$1,URLEncode(R13)),\"\")","v":""},"","","","รถหัวลากกึ่งพ่วง","น้ำมันดีเซล","","","","","","","","","","","",""]

{"sheet":"List","index":2,"n_rows":7,"n_cols":6,"rows_kept":7,"cut":false,"hidden":false,"merged":[]}
["ชนิดรถ","เชื้อเพลง",null,"URL","https://script.google.com/macros/s/AKfycbxB4FhMXtS18B3dCA1FO6Gfyx8-E_rrowkVq5BeSAFTUyniEtg/exec"]
[]
["- โปรดระบุ -","ก๊าซ CNG",null,"รุ่นไฟล์","1-รุ่นตั้งต้น","2562-06-21"]
["รถหัวลากกึ่งพ่วง","น้ำมันดีเซล"]
["รถบรรทุก 10 ล้อ"]
["รถบรรทุก 6 ล้อ"]
["รถกระบะ 4 ล้อ"]